bitfinex-derivatives/quotes_ETHF0:USTF0_20250804
["timestamp","ask_amount","ask_price","bid_price","bid_amount"]
[1754327475710,0.6428,3717.2,3717.0,0.53802]
[1754327475711,0.9,3717.1,3717.0,0.53802]
[1754327475907,0.53798,3717.3,3716.8,0.53804]
[1754327476107,2.4646,3717.1,3716.7,0.53806]
[1754327476318,3.8506,3717.1,3716.3,4.7012]
[1754327476508,2.4646,3716.8,3716.3,3.2078]
[1754327476814,3.74588,3716.7,3716.3,0.53812]
[1754327477116,0.5381,3716.5,3716.1,0.53814]
[1754327477304,1.5428,3716.3,3715.8,1.4934]
[1754327477509,1.8218,3715.7,3715.6,0.53822]
[1754327477709,3.00282,3715.7,3715.5,3.2078]
[1754327477913,0.53822,3715.7,3715.2,0.53827]
[1754327478116,20.366,3715.8,3715.4,0.53825]
[1754327478309,3.2078,3715.9,3715.6,0.53822]
[1754327478510,1.34511,3716.9,3715.9,0.53818]
[1754327478511,3.2078,3716.3,3715.9,0.53818]
[1754327478712,2.4646,3716.2,3715.5,1.4934]
[1754327478905,20.354,3716.1,3715.5,1.4934]
[1754327479108,1.34502,3717.1,3715.3,3.2078]
[1754327479109,20.89217,3716.0,3715.3,3.2078]
[1754327479313,2.4646,3715.9,3715.5,0.53823]
[1754327479516,3.2078,3716.3,3715.3,3.2078]
[1754327479712,0.53819,3715.9,3715.3,3.2078]
[1754327479904,2.4646,3716.0,3715.3,3.2078]
[1754327480106,20.354,3715.9,3715.3,3.2078]
[1754327480423,1.8218,3716.2,3716.0,0.53815]
[1754327480608,20.354,3716.2,3715.7,0.8545]
[1754327480809,1.8218,3716.0,3715.9,0.6389]
[1754327481015,1.5646,3715.9,3715.6,1.39272]
[1754327481213,20.356,3716.0,3715.6,1.4934]
[1754327481414,1.8218,3716.0,3715.9,1.17708]
[1754327481615,22.1778,3716.0,3715.4,3.8467]
[1754327482311,0.6428,3715.8,3714.9,2.46245746]
[1754327482512,3.2078,3715.9,3715.3,0.53826]
[1754327482713,21.8978,3715.8,3715.1,0.8545]
[1754327483017,20.355,3715.9,3715.5,1.34558]
[1754327483220,3.2078,3716.3,3716.1,2.03155]
[1754327483412,23.5628,3716.3,3716.2,1.4934]
[1754327483612,4.1078,3716.3,3716.2,1.4934]
[1754327484015,4.1078,3716.8,3716.6,0.53808]
[1754327484213,24.4648,3716.8,3716.7,1.4934]
[1754327484517,4.1078,3716.8,3716.7,1.4934]
[1754327484721,24.4648,3716.8,3716.7,1.4934]
[1754327485016,4.1078,3716.8,3716.7,1.4934]
[1754327485217,23.5648,3716.8,3716.7,1.4934]
[1754327485423,0.6428,3717.2,3717.1,0.6389]
[1754327485424,4.1078,3717.2,3717.1,0.6389]
[1754327485618,24.4648,3717.2,3717.1,1.4934]
[1754327485817,25.1294,3717.2,3717.0,1.17692]
[1754327486020,26.0294,3717.2,3717.1,0.6389]
[1754327486321,26.0294,3717.2,3717.0,1.39252]
[1754327486322,2.4646,3717.1,3717.0,0.53802]
[1754327486713,0.9,3716.9,3716.6,3.2078]
[1754327486918,2.4646,3716.7,3716.6,3.74588]
[1754327487120,1.8218,3716.7,3716.6,4.38478]
[1754327488318,22.1768,3716.7,3716.6,4.38478]
[1754327488815,22.1768,3716.7,3716.6,5.23928]
[1754327489016,21.255,3716.7,3716.6,5.23928]
[1754327489319,20.355,3716.7,3716.6,5.23928]
[1754327489514,3.2078,3717.2,3717.0,0.53802]
[1754327489721,4.1078,3717.2,3717.0,1.39252]
[1754327489916,4.7724,3717.2,3716.6,4.0623]
[1754327490117,2.4646,3717.0,3716.8,0.53804]
[1754327490326,2.4646,3717.0,3716.9,0.53802]
[1754327490518,2.4646,3717.0,3716.6,3.2078]
[1754327490519,0.53805,3716.8,3716.6,3.2078]
[1754327490720,2.4646,3716.5,3716.3,0.53811]
[1754327490920,22.8176,3716.4,3716.3,0.53811]
[1754327491325,20.353,3716.4,3716.2,0.53812]
[1754327491518,20.353,3716.4,3715.9,3.2078]
[1754327491720,0.9,3716.1,3715.9,3.2078]
[1754327491922,0.9218,3716.3,3715.9,4.55324]
[1754327492223,0.9218,3716.2,3716.0,0.53816]
[1754327492422,2.08094,3716.2,3715.8,0.53818]
[1754327492628,3.2078,3716.4,3716.3,0.53812]
[1754327492924,3.2078,3716.4,3716.3,2.91332]
[1754327492925,20.352,3716.4,3716.3,2.91332]
[1754327493119,20.352,3716.6,3716.4,0.6389]
[1754327493323,2.4646,3716.4,3716.1,1.4934]
[1754327493620,0.9,3716.3,3716.2,2.03154]
[1754327493825,1.5646,3716.4,3716.2,2.03154]
[1754327493826,20.352,3716.6,3716.5,0.53809]
[1754327494024,20.352,3716.6,3716.2,0.53813]
[1754327494214,0.53811,3716.4,3715.6,1.7363]
[1754327494419,20.352,3716.3,3715.6,2.20004]
[1754327494615,2.4646,3716.2,3716.0,0.53815]
[1754327494830,2.4646,3716.1,3716.0,0.53815]
[1754327495028,1.5646,3716.1,3715.9,0.53817]
[1754327495321,21.252,3716.0,3715.9,2.03157]
[1754327495516,22.8166,3716.0,3715.8,0.53819]
[1754327495720,1.8218,3715.9,3715.5,3.2078]
[1754327495920,20.352,3716.0,3715.8,0.53818]
[1754327496118,20.89018,3716.0,3715.8,0.53818]
[1754327496323,0.53819,3715.9,3715.4,1.41246124]
[1754327496518,20.352,3716.0,3715.2,2.26696124]
[1754327496727,2.4646,3715.3,3715.2,0.53827]
[1754327497030,22.8156,3715.3,3715.2,0.53827]
[1754327497823,1.8218,3715.6,3715.5,0.53822]
[1754327498020,2.4646,3715.6,3715.5,0.53822]
[1754327498222,22.8146,3715.6,3715.5,0.53822]
[1754327498428,22.8146,3715.6,3715.5,1.39272]
[1754327498626,38.743,3716.2,3715.2,0.8545]
[1754327498835,21.25,3716.1,3715.5,0.6389]
[1754327499024,0.53816,3716.0,3715.7,0.5382]
[1754327499222,2.4646,3716.0,3715.6,0.53822]
[1754327499418,2.4646,3715.9,3715.6,0.53822]
[1754327499728,2.4646,3715.7,3715.6,0.53822]
[1754327500226,2.3505,3716.0,3715.9,0.53817]
[1754327500424,38.743,3716.2,3716.1,0.53815]
[1754327500730,60.8013,3716.2,3716.1,1.19305]
[1754327500926,61.4435,3716.2,3716.0,0.53815]
[1754327501127,61.4435,3716.2,3715.9,0.53817]
[1754327501128,2.3505,3716.1,3715.9,0.53817]
[1754327501428,2.3505,3715.9,3715.8,0.53818]
[1754327501628,22.7005,3715.9,3715.8,0.53818]
[1754327502216,22.7005,3715.9,3715.7,0.5382]
[1754327502217,2.3505,3715.8,3715.7,0.5382]
[1754327502418,1.7083,3715.8,3715.7,0.5382]
[1754327502624,1.7083,3715.8,3715.3,2.06736124]
[1754327502625,0.6422,3715.7,3715.3,1.41246124]
[1754327502825,2.3505,3715.7,3715.4,0.53825]
[1754327503020,0.53825,3715.5,3715.2,5.15853124]
[1754327503228,2.3505,3715.3,3715.2,5.15853124]
[1754327503626,2.3505,3715.3,3715.2,3.74607]
[1754327503826,0.53817,3716.0,3715.8,0.53819]
[1754327504026,3.2078,3716.1,3716.0,0.53816]
[1754327504231,25.9063,3716.1,3716.0,0.53816]
[1754327504427,22.6985,3716.1,3716.0,0.53816]
[1754327504624,20.348,3716.1,3716.0,1.44966]
[1754327505232,20.348,3716.1,3716.0,3.00256]
[1754327505532,0.53807,3716.7,3716.0,3.00256]
[1754327505533,21.2266,3716.6,3716.5,0.53808]
[1754327505823,3.2078,3716.9,3716.7,0.53805]
[1754327506033,3.2078,3716.9,3716.8,1.5529]
[1754327506225,25.9063,3716.9,3716.7,0.53805]
[1754327506426,1.7083,3716.8,3716.7,0.53805]
[1754327506722,1.7083,3716.8,3716.7,1.19295]
[1754327507028,2.3505,3716.8,3716.7,1.19295]
[1754327507524,2.3505,3716.8,3716.7,0.53805]
[1754327508229,2.3505,3716.7,3716.1,3.2078]
[1754327508432,0.8297,3716.6,3716.1,3.2078]
[1754327508730,20.344,3716.6,3716.3,1.5529]
[1754327508932,20.344,3716.6,3716.5,2.09099]
[1754327509122,20.344,3716.6,3716.5,3.00249]
[1754327509326,20.344,3716.6,3716.5,2.09099]
[1754327509526,21.1737,3716.6,3716.5,2.09099]
[1754327509727,22.6945,3716.6,3716.5,1.19299]
[1754327509933,5.5583,3716.9,3716.8,0.53805]
[1754327510227,23.5508,3716.9,3716.1,4.1058]
[1754327510421,0.53808,3716.6,3716.4,0.5381]
[1754327510622,22.6935,3716.5,3716.4,0.5381]
[1754327511127,23.2316,3716.5,3716.3,0.53811]
[1754327511328,0.53812,3716.4,3716.1,3.74594]
[1754327511533,1.5208,3716.2,3716.1,3.2078]
[1754327511736,22.6915,3716.2,3716.1,3.2078]
[1754327512034,22.6915,3716.2,3716.1,3.74595]
[1754327512534,22.6915,3716.2,3716.1,3.2078]
[1754327512930,20.341,3716.2,3716.1,0.53815]
[1754327513234,0.53816,3716.1,3715.8,0.53819]
[1754327513535,2.3505,3715.9,3715.7,0.5382]
[1754327513838,22.6895,3715.8,3715.7,0.5382]
[1754327514036,22.6895,3715.8,3715.4,1.41246124]
[1754327514037,2.3505,3715.6,3715.5,0.53823]
[1754327514229,2.3505,3715.6,3715.4,1.41246124]
[1754327514230,0.53822,3715.7,3715.4,1.95071124]
[1754327514435,0.53822,3715.7,3715.3,0.53826]
[1754327514730,20.8772,3715.8,3715.5,0.53824]
[1754327515130,2.3505,3715.6,3715.5,0.53824]
[1754327515327,0.8297,3715.6,3715.5,2.09114]
[1754327515527,0.53823,3715.6,3715.3,0.53827]
[1754327515832,2.3505,3715.4,3715.3,0.53827]
[1754327516636,0.53826,3715.4,3715.2,3.74607]
[1754327516935,2.3505,3715.3,3715.2,3.74607]
[1754327517130,0.6422,3715.8,3715.3,2.4644]
[1754327517335,20.336,3715.7,3715.2,3.2078]
[1754327517632,20.335,3715.6,3715.5,0.53824]
[1754327517835,20.335,3715.6,3715.5,2.09114]
[1754327518030,20.335,3715.6,3715.3,0.53826]
[1754327518031,1.4719,3715.4,3715.3,0.53826]
[1754327518233,2.3505,3715.4,3715.3,0.53826]
[1754327518736,22.6845,3715.4,3715.3,0.53826]
[1754327518937,0.8297,3715.7,3715.3,0.6549]
[1754327519231,1.7083,3715.5,3715.4,0.53824]
[1754327519437,2.3505,3715.5,3715.4,0.53824]
[1754327519732,0.53827,3715.3,3715.2,3.2078]
[1754327520035,2.88881,3715.0,3714.9,0.96905746]
[1754327520333,2.3505,3715.0,3714.9,0.96905746]
[1754327520537,20.333,3715.0,3714.9,3.43345746]
[1754327520934,0.53825,3715.4,3715.2,0.6549]
[1754327521135,38.748,3716.1,3715.1,0.9115]
[1754327521136,20.332,3715.3,3715.1,0.9115]
[1754327521335,20.87029,3715.2,3714.9,0.96905746]
[1754327521534,0.53829,3715.2,3715.1,1.5664]
[1754327521735,2.24659,3715.2,3715.1,1.5664]
[1754327521936,20.331,3715.2,3714.9,0.96905746]
[1754327522238,1.7083,3715.0,3714.9,2.53545746]
[1754327522438,22.6805,3715.0,3714.9,2.53545746]
[1754327522634,2.3505,3715.4,3715.1,1.5664]
[1754327522829,21.1597,3715.3,3715.0,1.5664]
[1754327523035,1.7083,3715.2,3715.1,1.5664]
[1754327523235,1.7083,3715.2,3714.9,4.17685746]
[1754327523236,2.3505,3715.2,3714.9,4.17685746]
[1754327523435,1.4719,3715.1,3714.9,5.74325746]
[1754327523632,2.3505,3715.0,3714.9,4.83175746]
[1754327523839,2.3505,3715.0,3714.9,0.96905746]
[1754327524939,2.3505,3715.0,3714.9,0.04855746]
[1754327525243,22.6785,3715.0,3714.9,0.04855746]
[1754327525438,20.328,3715.0,3714.9,3.79467746]
[1754327525637,20.328,3715.0,3714.9,4.16785746]
[1754327526044,20.328,3715.0,3714.9,5.73645746]
[1754327526238,38.755,3716.0,3714.9,5.73645746]
[1754327526239,39.6336,3716.0,3715.3,2.4801]
[1754327526443,20.329,3715.9,3715.4,3.2078]
[1754327526739,21.2066,3715.8,3715.7,0.6549]
[1754327526938,21.2066,3715.8,3715.7,2.4801]
[1754327527144,22.6785,3715.8,3715.7,2.4801]
[1754327527346,21.2066,3715.8,3715.7,2.4801]
[1754327527547,20.328,3715.8,3715.4,3.2078]
[1754327527846,2.3505,3715.5,3715.4,3.2078]
[1754327528050,22.6765,3715.5,3715.4,3.8627]
[1754327529150,22.6765,3715.5,3715.4,4.7742]
[1754327529348,2.3505,3715.5,3715.4,5.6879]
[1754327529549,22.0333,3715.5,3715.4,5.6879]
[1754327529750,21.2036,3715.5,3715.4,5.6879]
[1754327530046,20.324,3715.5,3715.4,5.6879]
[1754327530250,40.5344,3716.2,3715.8,0.53818]
[1754327530558,3.2078,3716.4,3716.3,0.53812]
[1754327530757,23.5298,3716.4,3716.3,2.86822]
[1754327531860,20.322,3716.4,3716.3,2.86822]
[1754327532358,21.2303,3716.4,3716.3,2.86822]
[1754327532554,2.4448,3716.3,3716.2,0.6343]
[1754327532752,0.53819,3715.9,3715.3,3.74605]
[1754327532951,2.983,3715.7,3715.3,3.2078]
[1754327533255,1.7804,3715.7,3715.0,0.8309]
[1754327533450,20.317,3715.6,3715.5,2.3301]
[1754327533852,1.7804,3715.4,3715.1,0.53829]
[1754327534056,2.4448,3715.3,3715.1,0.53829]
[1754327534252,22.7608,3715.2,3715.1,0.53829]
[1754327534450,20.316,3715.2,3715.1,2.86839]
[1754327534855,2.4448,3715.7,3715.2,0.53826]
[1754327535055,2.4448,3715.7,3714.9,0.04855746]
[1754327535056,22.7608,3715.6,3714.9,0.04855746]
[1754327535250,4.1161,3716.1,3715.4,1.4992]
[1754327535452,20.315,3716.0,3715.5,1.4652]
[1754327535658,3.2078,3716.1,3715.9,1.4652]
[1754327535861,1.7804,3716.4,3715.9,0.53817]
[1754327536161,1.7804,3716.4,3716.3,2.3301]
[1754327536461,1.7804,3716.4,3716.3,0.6343]
[1754327536662,0.53811,3716.3,3715.9,2.86826]
[1754327536856,1.7804,3716.3,3716.0,0.53815]
[1754327537156,1.41022,3716.3,3715.9,0.6343]
[1754327537362,0.9083,3716.1,3715.9,2.3301]
[1754327537557,0.9083,3716.0,3715.9,2.3301]
[1754327537753,0.53817,3716.0,3715.7,0.8649]
[1754327537963,0.9083,3715.5,3715.4,4.707]
[1754327538158,22.7538,3715.5,3715.4,4.707]
[1754327538562,22.0894,3715.5,3715.4,2.3301]
[1754327539163,20.309,3715.5,3715.4,5.5379]
[1754327540561,3.2078,3716.1,3715.4,5.5379]
[1754327540562,3.74595,3716.1,3715.4,4.9036]
[1754327540757,20.304,3716.0,3715.9,2.3301]
[1754327541165,0.53817,3715.9,3715.6,0.53821]
[1754327541461,2.4448,3715.4,3715.1,1.17258]
[1754327541669,1.7804,3715.2,3715.1,1.17258]
[1754327541965,22.0834,3715.2,3715.1,1.17258]
[1754327542156,22.0834,3715.2,3715.1,2.03748]
[1754327542357,2.98309,3715.1,3714.9,3.25635746]
[1754327542560,2.4448,3715.0,3714.9,3.25635746]
[1754327543671,2.4448,3715.0,3714.9,3.89065746]
[1754327543964,1.7804,3715.4,3715.0,1.6958]
[1754327544161,0.5383,3715.1,3714.9,3.25635746]
[1754327544360,2.4448,3715.0,3714.9,0.04855746]
[1754327544763,22.7438,3715.0,3714.9,0.04855746]
[1754327545370,1.5727,3715.6,3714.9,1.51375746]
[1754327545570,0.9083,3715.4,3715.1,2.3301]
[1754327545765,0.9083,3715.4,3715.2,2.3301]
[1754327545972,2.31865,3715.4,3715.2,2.3301]
[1754327546365,1.7804,3715.5,3715.3,0.6343]
[1754327546666,22.7408,3715.4,3715.3,0.6343]
[1754327547159,22.7408,3715.4,3715.1,0.53828]
[1754327547363,22.7408,3715.4,3714.9,3.25635746]
[1754327547364,2.4448,3715.0,3714.9,0.04855746]
[1754327547571,22.7388,3715.0,3714.9,0.04855746]
[1754327547966,25.9466,3715.0,3714.9,0.04855746]
[1754327548171,0.53839,3714.5,3714.3,1.88595394]
[1754327548466,22.7378,3714.4,3713.9,1.09363231]
[1754327548664,0.53843,3714.2,3713.7,0.53848]
[1754327548864,0.9083,3713.9,3713.7,2.3301]
[1754327549168,2.4448,3713.7,3713.6,3.2078]
[1754327549371,1.7804,3713.5,3713.4,0.53852]
[1754327549673,0.30736195,3713.6,3713.5,1.6958]
[1754327549873,20.292,3713.8,3713.7,0.8649]
[1754327550070,0.53843,3714.2,3713.8,1.4652]
[1754327550268,20.291,3714.1,3713.5,1.34628]
[1754327550468,20.29,3714.3,3714.2,0.8649]
[1754327550665,3.2078,3715.2,3714.4,2.86849]
[1754327550971,20.29,3714.5,3714.4,5.21139]
[1754327551165,3.2078,3715.2,3714.9,0.53831]
[1754327551367,3.2078,3715.2,3715.0,0.6343]
[1754327551574,25.0333,3715.2,3715.1,0.8649]
[1754327551774,25.9406,3715.2,3715.1,0.8649]
[1754327552468,23.4958,3715.2,3715.0,0.5383]
[1754327552676,23.4958,3715.2,3715.1,0.6343]
[1754327552976,20.287,3715.2,3715.1,0.53829]
[1754327553372,20.286,3715.2,3715.0,3.2078]
[1754327553572,20.285,3715.1,3715.0,2.52151598]
[1754327553974,20.285,3715.1,3715.0,3.05981598]
[1754327554371,21.1571,3715.1,3715.0,3.69411598]
[1754327554567,21.1571,3715.1,3714.5,4.0387]
[1754327554568,22.7298,3715.1,3714.5,4.0387]
[1754327554773,2.4448,3714.9,3714.7,0.53835]
[1754327554969,20.9464,3714.8,3714.5,4.673]
[1754327555174,20.82035,3714.8,3714.5,3.49216841]
[1754327555467,2.4448,3714.6,3714.5,3.49216841]
[1754327555674,2.4448,3714.6,3714.5,2.85786841]
[1754327555869,2.4448,3714.6,3714.2,0.53841]
[1754327556072,0.6644,3714.5,3714.2,0.53841]
[1754327556269,2.4448,3714.2,3713.8,0.53848]
[1754327556476,20.279,3714.1,3713.7,3.74629]
[1754327556674,0.6644,3713.9,3713.7,3.74629]
[1754327556874,22.0594,3713.8,3713.7,0.53849]
[1754327557075,2.4448,3713.7,3713.3,3.2078]
[1754327557276,0.53855,3713.3,3712.8,3.2078]
[1754327557482,2.4448,3713.1,3712.8,3.2078]
[1754327557782,3.2078,3713.6,3712.8,4.707]
[1754327557783,1.5727,3713.5,3712.8,4.707]
[1754327558080,0.5385,3713.7,3713.3,0.8649]
[1754327558279,2.98332,3713.5,3712.8,0.53861]
[1754327558481,3.2078,3714.0,3712.7,0.8649]
[1754327558482,1.7804,3713.3,3712.7,0.53863]
[1754327558872,0.53856,3713.2,3712.7,0.53863]
[1754327559078,0.53859,3713.0,3712.5,3.74646]
[1754327559277,1.7804,3712.8,3712.6,0.6343]
[1754327559478,2.4448,3712.7,3712.6,0.6343]
[1754327559683,0.6644,3712.7,3712.3,1.88674977]
[1754327559882,0.8721,3712.5,3712.4,0.6343]
[1754327560081,1.7804,3712.5,3712.4,0.6343]
[1754327560276,1.7804,3712.5,3712.4,3.8421]
[1754327560679,1.7804,3712.5,3712.4,5.27629083]
[1754327560883,22.0544,3712.5,3712.4,5.27629083]
[1754327561081,22.0544,3712.5,3712.4,3.57814768]
[1754327561281,22.0544,3712.5,3712.4,3.32023]
[1754327561581,22.0544,3712.5,3712.4,0.96127]
[1754327562180,21.1276,3712.5,3712.4,0.53868]
[1754327562483,20.81268,3712.5,3712.2,3.83462387]
[1754327562684,0.8536,3712.4,3712.3,3.29592387]
[1754327562984,1.74608172,3712.4,3712.3,3.29592387]
[1754327563486,0.53869,3712.3,3712.0,0.53873]
[1754327563680,1.6251,3712.1,3711.9,1.50859065]
[1754327563881,21.1949,3712.0,3711.9,1.50859065]
[1754327564081,16.80570423,3712.0,3711.9,1.50859065]
[1754327564474,16.80570423,3712.0,3711.9,0.89589747]
[1754327564679,16.10550423,3712.0,3711.9,2.88419747]
[1754327564886,15.18060423,3712.0,3711.9,2.20469747]
[1754327565082,0.9249,3712.4,3712.3,0.6795]
[1754327565276,0.9249,3712.7,3712.5,1.84745]
[1754327565584,0.9249,3712.7,3712.6,1.5657]
[1754327565780,21.1939,3712.7,3712.6,1.5657]
[1754327565985,0.9249,3712.5,3712.0,3.03520666]
[1754327566282,2.4787,3712.3,3712.2,0.5387]
[1754327566487,0.9249,3712.3,3712.2,2.527]
[1754327566882,0.9249,3712.6,3712.5,1.21815]
[1754327567077,21.1899,3712.6,3712.5,1.5657]
[1754327567585,3.2078,3713.1,3713.0,2.10429]
[1754327567780,20.264,3713.2,3713.1,2.52687]
[1754327568284,20.264,3713.2,3713.0,0.53859]
[1754327568587,20.264,3713.2,3712.8,1.34656]
[1754327568784,20.264,3713.2,3713.0,0.53859]
[1754327568981,20.264,3713.2,3713.1,1.9883]
[1754327569179,3.2078,3713.5,3713.0,0.4226]
[1754327569381,0.9249,3713.2,3712.3,4.55454]
[1754327569588,0.9249,3713.1,3712.9,0.9612]
[1754327569890,1.46349,3713.1,3713.0,0.6795]
[1754327570092,3.01729,3713.1,3713.0,0.6795]
[1754327570490,3.01729,3713.1,3712.9,0.8862]
[1754327570791,1.46351,3712.9,3712.7,4.63263]
[1754327570990,1.46351,3712.9,3711.0,2.96337442]
[1754327570991,1.46354,3712.7,3712.6,0.53864]
[1754327571188,0.53867,3712.5,3712.3,0.53869]
[1754327571487,0.53871,3712.2,3712.0,0.6795]
[1754327571687,1.46361,3712.2,3712.1,0.6795]
[1754327571886,1.46361,3712.2,3712.1,1.1485]
[1754327572086,2.31721,3712.2,3712.1,0.6795]
[1754327572289,2.4787,3712.1,3712.0,0.53873]
[1754327572492,2.4787,3712.1,3711.9,0.28310537]
[1754327572686,20.256,3712.2,3712.0,2.0347]
[1754327573096,21.1809,3712.2,3712.1,0.32934267]
[1754327573493,21.1809,3712.2,3712.1,1.21554267]
[1754327574290,3.01742,3712.1,3711.9,1.70804537]
[1754327574490,0.9249,3712.0,3711.9,1.70804537]
[1754327574800,0.9249,3712.0,3711.9,2.17704537]
[1754327575285,0.9249,3712.0,3711.9,2.58294537]
[1754327575489,1.5538,3712.1,3711.9,2.58294537]
[1754327575689,1.5538,3712.1,3712.0,1.7611]
[1754327575890,2.4787,3712.1,3712.0,1.7611]
[1754327576086,0.53874,3712.0,3711.9,0.28310537]
[1754327576290,3.01744,3712.0,3711.9,0.28310537]
[1754327576599,2.4787,3712.0,3711.9,0.28310537]
[1754327577293,2.4787,3712.0,3711.9,1.57520537]
[1754327577797,2.4787,3712.0,3711.9,2.04420537]
[1754327578096,2.4787,3712.0,3711.9,1.57520537]
[1754327578296,2.4787,3712.0,3711.9,0.68900537]
[1754327578501,22.7227,3712.0,3711.9,2.04420537]
[1754327578798,21.1689,3712.0,3711.9,2.04420537]
[1754327578997,22.7227,3712.0,3711.9,2.04420537]
[1754327579198,22.7227,3712.0,3711.9,1.69404376]
[1754327579499,22.7227,3712.0,3711.9,1.22504376]
[1754327579998,20.244,3712.0,3711.9,1.69404376]
[1754327580295,1.6251,3711.7,3711.4,0.469]
[1754327580496,0.53878,3711.8,3711.7,1.42498]
[1754327580697,2.09261,3711.6,3711.4,0.8862]
[1754327580996,2.4787,3711.5,3711.4,0.8862]
[1754327581299,0.53885,3711.3,3711.0,0.87778]
[1754327581598,2.4787,3711.8,3711.7,0.87768]
[1754327581793,22.7167,3711.8,3711.7,1.2251]
[1754327582301,22.7147,3711.8,3711.7,0.3389]
[1754327582597,0.53878,3711.7,3711.5,0.5388]
[1754327582798,0.53881,3711.5,3711.4,0.469]
[1754327582998,23.4438,3711.8,3710.9,3.2078]
[1754327583200,0.53881,3711.6,3711.0,0.469]
[1754327583399,0.53881,3711.6,3710.9,4.55503]
[1754327583600,1.6251,3711.2,3711.0,1.76397]
[1754327583901,1.6251,3711.2,3710.9,3.2078]
[1754327583902,20.9342,3711.2,3711.1,0.53887]
[1754327584199,0.7002,3711.2,3711.1,2.23297]
[1754327584494,2.4787,3711.5,3711.4,0.87771]
[1754327584698,0.7002,3711.8,3711.4,1.68595]
[1754327585001,0.9249,3712.0,3711.9,2.23285]
[1754327585196,22.7097,3712.0,3711.9,1.2251]
[1754327585499,22.7097,3712.0,3711.5,0.53881]
[1754327585500,2.4787,3711.6,3711.5,0.53881]
[1754327585695,2.4787,3711.3,3711.2,3.74665]
[1754327585893,2.4787,3711.3,3711.2,4.08555]
[1754327586095,2.4787,3711.3,3711.2,4.97175]
[1754327586296,22.7077,3711.6,3711.5,0.87771]
[1754327586500,20.229,3711.6,3711.5,1.76391]
[1754327586696,20.229,3711.6,3711.5,2.23291]
[1754327586889,22.7077,3711.6,3711.5,0.87771]
[1754327587095,22.7077,3711.6,3711.5,1.76391]
[1754327587291,0.53876,3711.9,3711.8,0.53877]
[1754327587292,0.7002,3711.9,3711.8,0.53877]
[1754327587495,2.4787,3711.8,3711.7,0.53877]
[1754327587895,20.76676,3711.9,3711.0,4.8939]
[1754327587896,20.228,3711.9,3711.0,4.8939]
[1754327588103,20.228,3711.9,3711.5,0.5388]
[1754327588104,1.7785,3711.6,3711.5,0.5388]
[1754327588300,0.7002,3711.2,3711.0,3.2078]
[1754327588495,2.4787,3711.1,3711.0,3.2078]
[1754327590097,21.1449,3711.1,3711.0,4.9019]
[1754327590405,0.9249,3711.1,3711.0,4.9019]
[1754327590599,1.6011,3712.0,3711.9,0.87275]
[1754327590901,1.6011,3712.0,3711.6,0.4625]
[1754327590902,22.6637,3712.0,3711.7,0.9272]
[1754327591103,2.4457,3711.9,3711.7,1.46597]
[1754327591304,2.4457,3711.9,3711.5,3.2078]
[1754327591607,2.4457,3711.6,3711.5,3.7466]
[1754327592003,1.6011,3712.3,3712.1,0.53871]
[1754327592201,1.7685,3712.5,3712.4,0.7965]
[1754327592508,22.6617,3712.5,3712.4,0.7965]
[1754327592901,22.6617,3712.5,3712.3,0.53869]
[1754327593199,2.4457,3712.4,3712.3,0.87269]
[1754327593601,23.35580723,3712.4,3712.3,0.87269]
[1754327593798,3.14280723,3712.4,3712.3,0.53869]
[1754327594000,23.35480723,3712.4,3712.3,0.53869]
[1754327594398,22.6577,3712.4,3712.3,0.53869]
[1754327594598,2.4457,3712.3,3712.1,0.53872]
[1754327594904,2.4457,3712.3,3710.3,2.96583246]
[1754327594905,0.53875,3711.9,3711.1,0.4625]
[1754327595205,0.6772,3711.7,3711.4,0.53882]
[1754327595398,0.6772,3711.5,3711.4,0.53882]
[1754327595602,2.4457,3712.0,3711.7,0.53877]
[1754327595796,2.4457,3711.8,3711.7,0.53877]
[1754327596102,3.14346991,3711.8,3711.7,0.53877]
[1754327596506,1.7685,3711.6,3711.2,1.3897]
[1754327596806,1.7685,3711.4,3711.3,1.07754]
[1754327596998,0.53875,3712.0,3711.3,1.07754]
[1754327596999,2.4457,3712.1,3711.3,3.27548]
[1754327597197,2.30726,3711.9,3711.3,2.92526089]
[1754327597407,0.69842576,3711.8,3711.3,2.73678]
[1754327597706,0.6772,3711.6,3711.5,0.53881]
[1754327598008,1.37562576,3711.6,3711.5,0.53881]
[1754327598209,20.89842576,3711.7,3711.5,1.00131]
[1754327598405,0.69842576,3711.6,3711.5,1.46601]
[1754327598605,1.7685,3711.7,3711.5,1.46601]
[1754327599007,21.1229,3711.8,3711.7,1.00128]
[1754327599207,22.6447,3711.8,3711.7,1.18978]
[1754327599603,1.7685,3711.8,3711.7,1.18978]
[1754327599805,1.7685,3711.8,3711.7,2.11698]
[1754327600006,1.34669,3712.5,3711.7,2.11698]
[1754327600007,2.4457,3712.4,3712.1,0.1885]
[1754327600213,1.7685,3712.3,3712.2,1.18971]
[1754327600509,4.70580791,3712.8,3712.6,0.53865]
[1754327600709,23.34001871,3712.7,3712.6,0.53865]
[1754327602509,0.69931871,3712.7,3712.6,2.11685]
[1754327602707,0.69931871,3712.7,3712.6,5.32465]
[1754327604106,1.7685,3713.4,3713.3,1.00105]
[1754327604415,0.6991284,3713.4,3713.3,5.32455]
[1754327604905,3.1448284,3713.4,3713.3,3.74635]
[1754327605909,1.2376784,3713.4,3713.1,0.53858]
[1754327606116,2.4457,3713.2,3713.1,0.53858]